bitfinex/quotes_ETHUSD_20240917
["timestamp","ask_amount","ask_price","bid_price","bid_amount"]
[1726550860451,0.005,2299.2,2299.1,1.44340817]
[1726550860652,0.005,2299.2,2299.0,4.3496]
[1726550860880,0.005,2299.2,2298.9,1.44340817]
[1726550866093,0.005,2299.2,2298.9,1.44340817]
[1726550870164,0.005,2299.2,2298.9,5.79329817]
[1726550870962,0.05071878,2299.1,2298.9,5.79329817]
[1726550880017,0.05071878,2299.1,2298.9,1.44340817]
[1726550882518,0.05071878,2299.1,2298.9,5.79330817]
[1726550883017,0.05071878,2299.1,2298.9,1.44340817]
[1726550895414,0.05071878,2299.1,2298.8,6.70391958]
[1726550895614,0.05071878,2299.1,2298.9,3.35529338]
[1726550895851,5.52487803,2299.1,2298.7,6.70422958]
[1726550896114,5.52487803,2299.1,2298.8,4.26589214]
[1726550896317,5.52487803,2299.1,2298.9,3.35533073]
[1726550896594,5.52487803,2299.1,2298.8,0.91056141]
[1726550896733,5.52487803,2299.1,2298.9,3.35591077]
[1726550896934,5.52487803,2299.1,2298.8,0.91056141]
[1726550897261,5.52487803,2299.1,2298.9,3.35601667]
[1726550897456,5.52487803,2299.1,2298.8,0.91056141]
[1726550897635,5.52487803,2299.1,2298.9,3.35613103]
[1726550897828,5.52487803,2299.1,2298.8,0.91056141]
[1726550898027,4.34971,2299.0,2298.9,3.35608103]
[1726550898227,7.52039676,2299.0,2298.9,1.34243241]
[1726550898741,3.17068676,2299.0,2298.9,1.34243241]
[1726550898949,2.37232896,2299.0,2298.9,1.34243241]
[1726550899537,2.37232896,2299.0,2298.7,2.35396958]
[1726550899755,6.72203896,2299.0,2298.8,3.35713831]
[1726550899956,6.72203896,2299.0,2298.9,1.34285634]
[1726550901175,6.72203896,2299.0,2298.7,2.35396958]
[1726550901471,2.37232896,2299.0,2298.8,3.35791587]
[1726550901671,2.37232896,2299.0,2298.9,1.34316635]
[1726550902267,3.04501486,2299.0,2298.9,1.34316635]
[1726550903867,3.04501486,2299.0,2298.9,3.35786894]
[1726550904114,3.04501486,2299.0,2298.9,1.34316635]
[1726550904859,3.04501486,2299.0,2298.9,3.3580678]
[1726550905061,7.39472486,2299.0,2298.9,3.35805559]
[1726550905254,7.39472486,2299.0,2298.9,1.34345495]
[1726550906060,11.74454486,2299.0,2298.9,1.34345495]
[1726550906376,4.35003,2298.9,2298.6,0.91056141]
[1726550906594,5.52448449,2298.9,2298.7,3.35914802]
[1726550906867,0.04701264,2298.8,2298.6,0.91056141]
[1726550907029,0.04701264,2298.8,2298.7,1.34369061]
[1726550908981,4.39710264,2298.8,2298.7,3.35847166]
[1726550909156,4.39710264,2298.8,2298.5,4.63846958]
[1726550909364,4.39710264,2298.8,2298.6,3.35764027]
[1726550909567,4.39710264,2298.8,2298.5,4.63846958]
[1726550909888,4.39710264,2298.8,2298.6,3.35768361]
[1726550910041,4.39710264,2298.8,2298.5,4.63846958]
[1726550910236,4.39710264,2298.8,2298.6,3.3572576]
[1726550910574,4.39710264,2298.8,2298.5,4.63846958]
[1726550910869,4.39710264,2298.8,2298.6,3.35728425]
[1726550911075,4.39710264,2298.8,2298.5,4.63846958]
[1726550911249,4.39710264,2298.8,2298.6,3.35692216]
[1726550911453,4.39710264,2298.8,2298.5,4.63846958]
[1726550911703,4.39710264,2298.8,2298.6,3.35684065]
[1726550911910,4.39710264,2298.8,2298.5,4.63846958]
[1726550912208,4.39710264,2298.8,2298.6,3.35686036]
[1726550912411,0.04701264,2298.8,2298.7,1.44340817]
[1726550914291,0.04701264,2298.8,2298.7,2.78574694]
[1726550914481,0.04701264,2298.8,2298.7,4.79919794]
[1726550914685,0.04701264,2298.8,2298.7,2.78574694]
[1726550914875,0.04701264,2298.8,2298.7,2.78573392]
[1726550915304,0.04701264,2298.8,2298.7,4.79919332]
[1726550915903,0.04701264,2298.8,2298.7,4.79912433]
[1726550916108,0.04701264,2298.8,2298.7,4.79910935]
[1726550916274,0.04701264,2298.8,2298.7,2.78569463]
[1726550916891,0.04701264,2298.8,2298.7,2.78575508]
[1726550917229,0.04701264,2298.8,2298.7,1.44340817]
[1726550919727,0.04701264,2298.8,2298.7,2.78558123]
[1726550919923,0.04701264,2298.8,2298.7,1.44340817]
[1726550920113,0.04701264,2298.8,2298.7,2.78557647]
[1726550920318,11.02294,2299.0,2298.7,2.78557647]
[1726550920517,0.04521711,2298.8,2298.7,1.44340817]
[1726550920737,12.125734,2299.0,2298.7,2.78556643]
[1726550920948,0.04521711,2298.8,2298.7,1.44340817]
[1726550921156,12.125774,2299.0,2298.7,2.7855681]
[1726550921361,0.04521711,2298.8,2298.7,1.44340817]
[1726550921652,5.5625074,2298.9,2298.7,2.78549993]
[1726550921829,0.04521711,2298.8,2298.7,1.44340817]
[1726550922025,0.04521711,2298.8,2298.7,2.78555374]
[1726550922556,11.02301,2299.0,2298.7,2.78555374]
[1726550922857,0.04521711,2298.8,2298.7,1.44340817]
[1726550923058,12.125811,2299.0,2298.7,2.78557517]
[1726550923232,0.04521711,2298.8,2298.7,1.44340817]
[1726550923552,0.04521711,2298.8,2298.7,2.785598]
[1726550923768,2.394,2299.2,2298.8,4.35003]
[1726550924046,6.74348,2299.2,2298.9,2.78527402]
[1726550924253,6.74348,2299.2,2298.9,1.44340817]
[1726550924810,6.74348,2299.2,2298.7,8.10707817]
[1726550925014,6.74348,2299.2,2298.8,1.34194638]
[1726550925252,1.11310237,2299.1,2298.7,8.10707817]
[1726550925456,6.74348,2299.2,2298.8,1.34207147]
[1726550925642,2.394,2299.2,2298.7,2.3135]
[1726550925841,4.34965,2299.1,2298.8,3.35501641]
[1726550926039,0.674365,2299.0,2298.7,3.22406141]
[1726550926254,0.674365,2299.0,2298.8,1.3420692]
[1726550926426,0.674365,2299.0,2298.7,2.3135]
[1726550926795,0.674365,2299.0,2298.8,1.34213714]
[1726550926966,0.674365,2299.0,2298.7,2.3135]
[1726550927167,0.674365,2299.0,2298.8,1.3421376]
[1726550927367,0.674365,2299.0,2298.8,1.44340817]
[1726550927597,4.34965,2299.1,2298.8,1.44340817]
[1726550929285,2.394,2299.2,2298.8,1.44340817]
[1726550929486,6.74335,2299.2,2298.9,1.34209637]
[1726550929793,1.11308637,2299.1,2298.8,1.44340817]
[1726550929991,6.74335,2299.2,2298.9,1.34209466]
[1726550930287,6.74335,2299.2,2298.8,1.44340817]
[1726550930508,6.74335,2299.2,2298.9,1.3421526]
[1726550930797,8.60393637,2299.2,2298.8,1.44340817]
[1726550930955,8.60393637,2299.2,2298.9,1.34216757]
[1726550931163,0.04556816,2299.1,2298.8,1.44340817]
[1726550931470,0.04556816,2299.1,2298.9,1.34219255]
[1726550931669,0.04556816,2299.1,2298.8,1.44340817]
[1726550931878,0.04556816,2299.1,2298.9,1.34220695]
[1726550932080,0.04556816,2299.1,2298.8,1.44340817]
[1726550932310,0.04556816,2299.1,2298.9,1.34218152]
[1726550932459,0.04556816,2299.1,2298.8,1.44340817]
[1726550932665,0.04556816,2299.1,2298.9,1.34212314]
[1726550932959,0.04556816,2299.1,2298.8,1.44340817]
[1726550933164,0.04556816,2299.1,2298.9,1.34213954]
[1726550933367,0.04556816,2299.1,2298.8,1.44340817]
[1726550933799,0.04556816,2299.1,2298.9,1.34257405]
[1726550934012,0.04556816,2299.1,2298.8,1.44340817]
[1726550934210,0.04556816,2299.1,2298.9,1.34275917]
[1726550934427,0.04556816,2299.1,2298.9,2.3924]
[1726550936934,0.04556816,2299.1,2299.0,1.34265046]
[1726550937102,0.04556816,2299.1,2299.0,1.34262438]
[1726550937443,0.04556816,2299.1,2298.9,2.3924]
[1726550941243,0.04556816,2299.1,2299.0,2.7860912]
[1726550941450,0.04556816,2299.1,2299.0,2.78605651]
[1726550941747,0.04556816,2299.1,2299.0,1.44340817]
[1726550942166,0.04556816,2299.1,2299.0,2.78605827]
[1726550942361,0.04556816,2299.1,2299.0,1.44340817]
[1726550943009,0.04556816,2299.1,2299.0,2.78607954]
[1726550943207,0.04556816,2299.1,2299.0,1.44340817]
[1726550944809,0.04556816,2299.1,2299.0,2.78599963]
[1726550945013,0.04556816,2299.1,2299.0,1.44340817]
[1726550945212,0.04556816,2299.1,2299.0,2.78593792]
[1726550945422,0.04556816,2299.1,2299.0,1.44340817]
[1726550951624,0.04556816,2299.1,2299.0,6.70276213]
[1726550951767,0.04556816,2299.1,2299.0,12.50589546]
[1726550952211,0.04556816,2299.1,2299.0,10.49260047]
[1726550952395,0.04556816,2299.1,2299.0,12.5058538]
[1726550952570,0.04556816,2299.1,2299.0,12.41887128]
[1726550954110,0.04556816,2299.1,2299.0,10.40561795]
[1726550954611,0.04556816,2299.1,2299.0,12.41880543]
[1726550955213,0.04556816,2299.1,2299.0,10.40561795]
[1726550955584,0.04556816,2299.1,2299.0,12.41883814]
[1726550956501,0.04556816,2299.1,2299.0,12.41881625]
[1726550970107,0.04556816,2299.1,2299.0,13.32937766]
[1726550970507,0.04556816,2299.1,2299.0,12.41881625]
[1726550971124,0.04556816,2299.1,2299.0,12.42108673]
[1726550971642,0.04556816,2299.1,2299.0,9.15084277]
[1726550971946,0.04556816,2299.1,2299.0,3.3577246]
[1726550972146,2.36616816,2299.1,2299.0,3.3577246]
[1726550976052,2.36616816,2299.1,2299.0,3.35866228]
[1726550978049,0.04556816,2299.1,2299.0,3.35866228]
[1726550978550,0.04556816,2299.1,2299.0,8.61893369]
[1726550979114,0.04556816,2299.1,2299.0,7.70837228]
[1726550979309,0.04556816,2299.1,2299.0,15.46681366]
[1726550979578,0.005,2299.2,2299.1,8.69904]
[1726550979714,0.005,2299.2,2299.1,18.0067762]
[1726550979916,0.04734926,2299.2,2299.1,18.0067762]
[1726550980145,0.04734926,2299.2,2299.1,18.54757124]
[1726550980343,0.04734926,2299.2,2299.1,19.9121386]
[1726550981927,0.005,2299.2,2299.1,19.9121386]
[1726550984523,0.005,2299.2,2299.1,15.86154705]
[1726550984748,0.005,2299.2,2299.1,19.90967814]
[1726550985415,0.04581512,2299.2,2299.1,19.90967814]
[1726550985618,0.04581512,2299.2,2299.1,19.90507451]
[1726550986514,0.04581512,2299.2,2299.1,15.85694342]
[1726550986716,0.04581512,2299.2,2299.1,19.90469451]
[1726550986926,0.04581512,2299.2,2299.1,15.85694342]
[1726550987263,0.04581512,2299.2,2299.1,16.76597741]
[1726550989424,0.04581512,2299.2,2299.1,8.61261264]
[1726550989625,0.04581512,2299.2,2299.1,10.05602081]
[1726550990368,0.04581512,2299.2,2299.1,10.05616442]
[1726550993670,0.04581512,2299.2,2299.1,1.3416809]
[1726550994967,0.04581512,2299.2,2299.0,10.14260817]
[1726550995127,0.04581512,2299.2,2299.1,1.34208348]
[1726550995472,0.04581512,2299.2,2299.0,4.34958]
[1726550995761,0.04581512,2299.2,2299.0,5.79298817]
[1726550996339,0.04581512,2299.2,2299.1,1.34223086]
[1726550996861,0.04581512,2299.2,2299.1,1.34224693]
[1726550997228,6.929402,2299.2,2298.8,5.25894399]
[1726550997434,6.929402,2299.2,2298.9,3.35592853]
[1726550997435,2.3745,2299.1,2298.9,3.35592853]
[1726550997748,0.04083573,2299.0,2298.8,5.25894399]
[1726550997924,0.04083573,2299.0,2298.9,3.35618893]
[1726550999578,2.51623573,2299.0,2298.9,1.34247557]
[1726550999941,2.51623573,2299.0,2298.9,1.34261321]
[1726551000559,2.51623573,2299.0,2298.9,3.35640024]
[1726551000759,2.51623573,2299.0,2298.9,2.78602138]
[1726551002987,2.51623573,2299.0,2298.9,4.79958777]
[1726551003388,2.51623573,2299.0,2298.9,4.79925659]
[1726551003973,2.51623573,2299.0,2298.9,2.78582272]
[1726551004175,2.51623573,2299.0,2298.9,1.44340817]
[1726551004485,2.51623573,2299.0,2298.9,2.78575999]
[1726551004652,2.51623573,2299.0,2298.9,1.44340817]
[1726551006699,2.51623573,2299.0,2298.9,2.78561956]
[1726551007058,2.51623573,2299.0,2298.9,1.44340817]
[1726551007680,2.51623573,2299.0,2298.9,2.78560199]
[1726551007858,2.51623573,2299.0,2298.9,1.44340817]
[1726551008987,2.51623573,2299.0,2298.7,11.05276216]
[1726551009295,2.51623573,2299.0,2298.8,1.34221135]
[1726551009505,2.51623573,2299.0,2298.7,10.14372817]
[1726551009659,2.51623573,2299.0,2298.8,1.34214006]
[1726551009858,2.51623573,2299.0,2298.7,10.14372817]
[1726551010166,2.51623573,2299.0,2298.8,1.34223095]
[1726551010366,2.51623573,2299.0,2298.7,7.27165112]
[1726551010367,2.51623573,2299.0,2298.7,10.14375817]
[1726551010687,2.51623573,2299.0,2298.8,1.34211619]
[1726551010897,2.51623573,2299.0,2298.7,10.14375817]
[1726551011085,2.51623573,2299.0,2298.8,1.34210861]
[1726551011281,2.51623573,2299.0,2298.8,2.0]
[1726551020025,6.86602573,2299.0,2298.8,2.0]
[1726551021431,2.51623573,2299.0,2298.8,2.0]
[1726551026649,2.51623573,2299.0,2298.8,1.5]
[1726551027338,4.3499,2298.9,2298.8,1.5]
[1726551027837,4.38894661,2298.9,2298.8,1.5]
[1726551028137,11.09964661,2298.9,2298.8,1.5]
[1726551028546,4.35022,2298.8,2298.4,3.89330817]
[1726551028703,0.03828384,2298.7,2298.4,3.89330817]
[1726551028903,4.35022,2298.8,2298.4,3.89330817]
[1726551029127,0.03828384,2298.7,2298.4,3.89330817]
[1726551029406,4.35022,2298.8,2298.4,3.89330817]
[1726551029599,0.03819422,2298.6,2298.4,3.89330817]
[1726551029804,4.35022,2298.8,2298.4,3.89330817]
[1726551030047,0.03819422,2298.6,2298.4,3.89330817]
[1726551030244,4.35022,2298.8,2298.4,3.89330817]
[1726551030716,0.03825852,2298.7,2298.4,3.89330817]
[1726551031043,4.35022,2298.8,2298.4,3.89330817]
[1726551031641,0.03825852,2298.7,2298.4,3.89330817]
[1726551032019,4.35022,2298.8,2298.4,3.89330817]
[1726551032526,0.03825852,2298.7,2298.4,3.89330817]
[1726551032702,4.35022,2298.8,2298.4,5.58730817]
[1726551032902,0.03825852,2298.7,2298.4,5.58730817]
[1726551033103,4.35022,2298.8,2298.4,5.58730817]
[1726551033447,0.03825852,2298.7,2298.4,9.93805817]
[1726551033834,6.7107,2298.9,2298.4,9.93805817]
[1726551034144,0.03834812,2298.8,2298.4,9.93805817]
[1726551034304,0.03834812,2298.8,2298.4,11.59431812]
[1726551034919,4.38851812,2298.8,2298.4,11.59431812]
[1726551035107,4.38851812,2298.8,2298.4,7.48815817]
[1726551037575,0.03834812,2298.8,2298.4,9.84485817]
[1726551038570,0.03834812,2298.8,2298.5,1.34165263]
[1726551038774,0.03834812,2298.8,2298.4,9.84485817]
[1726551038971,0.03834812,2298.8,2298.5,1.34159524]
[1726551039275,0.03834812,2298.8,2298.4,11.49180912]
[1726551039576,0.03834812,2298.8,2298.5,1.34180497]
[1726551039773,0.03834812,2298.8,2298.4,11.49178912]
[1726551040073,0.03834812,2298.8,2298.5,1.34181274]
[1726551040382,0.03834812,2298.8,2298.4,11.49178912]
[1726551040544,0.03834812,2298.8,2298.5,1.341898]
[1726551040734,0.03834812,2298.8,2298.4,15.84254912]
[1726551040935,0.03834812,2298.8,2298.5,1.3419085]
[1726551041167,0.03834812,2298.8,2298.4,15.84254912]
[1726551041469,0.03834812,2298.8,2298.5,1.34199698]
[1726551041632,0.03834812,2298.8,2298.4,16.75158311]
[1726551041834,0.03834812,2298.8,2298.5,1.34196602]
[1726551042031,0.03834812,2298.8,2298.4,11.49178912]
[1726551042247,0.03834812,2298.8,2298.6,1.44340817]
[1726551043457,0.03834812,2298.8,2298.6,5.79386817]
[1726551043954,14.17773,2299.2,2298.8,4.35008]
[1726551044267,14.17773,2299.2,2298.8,5.79348817]
[1726551045202,18.52718,2299.2,2298.8,5.79348817]
[1726551045354,11.05718,2299.2,2298.8,5.79348817]
[1726551045555,2.3583,2299.2,2298.8,5.88041323]
[1726551045891,0.005,2299.2,2299.0,1.44340817]
[1726551048049,0.005,2299.2,2298.9,2.4055]
[1726551048485,0.005,2299.2,2298.8,5.79339817]
[1726551048802,2.4655,2299.2,2298.8,5.79339817]
[1726551052003,2.4655,2299.2,2298.8,10.14340817]
[1726551052193,2.4655,2299.2,2298.8,5.79339817]
[1726551052873,2.4655,2299.2,2298.8,10.14338817]
[1726551053085,2.4655,2299.2,2298.8,12.04518912]
[1726551053801,2.4655,2299.2,2298.8,7.69519912]
[1726551053985,2.4655,2299.2,2298.8,10.14340817]
[1726551054181,2.4655,2299.2,2298.9,4.34986]
[1726551055197,2.4655,2299.2,2298.8,5.79339817]
[1726551055762,2.4655,2299.2,2298.8,1.44340817]
[1726551055963,2.4655,2299.2,2298.9,4.34987]
[1726551059066,2.4655,2299.2,2298.8,1.44340817]
[1726551059485,2.4655,2299.2,2298.8,5.79338817]
[1726551062417,2.4655,2299.2,2298.9,4.34988]
[1726551071202,2.4655,2299.2,2298.9,6.04388]
[1726551072685,2.4655,2299.2,2299.0,1.44340817]
[1726551073540,2.4655,2299.2,2299.0,5.79310817]
[1726551073832,2.4655,2299.2,2299.0,1.44340817]
[1726551076213,0.005,2299.2,2299.0,5.79305817]
[1726551076510,0.005,2299.2,2299.1,7.70421107]
[1726551077337,0.005,2299.2,2299.1,8.05954775]
[1726551078138,0.005,2299.2,2299.1,8.05922518]
[1726551078633,0.005,2299.2,2299.1,1.34160518]
[1726551078842,0.005,2299.2,2299.1,5.69112518]
[1726551079945,0.005,2299.2,2299.1,7.70329877]
[1726551080143,0.005,2299.2,2299.1,9.6913716]
[1726551080440,0.005,2299.2,2299.1,14.0408916]
[1726551081915,0.005,2299.2,2299.1,16.3793916]
[1726551082852,0.005,2299.2,2299.1,16.37801318]
[1726551083321,0.005,2299.2,2299.1,17.28704717]
[1726551084216,0.005,2299.2,2299.1,20.28704717]
[1726551087647,0.005,2299.2,2299.1,20.28612002]
[1726551087863,0.005,2299.2,2299.1,25.18564002]
[1726551088041,0.0382537,2299.3,2299.2,12.50086817]
[1726551088356,0.0382537,2299.3,2299.2,19.90178974]
[1726551089149,0.0382537,2299.3,2299.2,20.81082373]
[1726551089319,0.0382537,2299.3,2299.2,19.90178974]
[1726551092119,0.0382537,2299.3,2299.2,20.81082373]
[1726551092360,0.0382537,2299.3,2299.2,19.90178974]
[1726551095142,0.0382537,2299.3,2299.2,23.81082373]
[1726551095532,0.005,2299.4,2299.3,2.3511]
[1726551095766,0.005,2299.4,2299.3,16.34044589]
[1726551095974,0.005,2299.4,2299.3,15.43275406]
[1726551096181,0.005,2299.4,2299.3,12.08128086]
[1726551096182,0.04312621,2299.4,2299.3,12.08128086]
[1726551096475,0.04312621,2299.4,2299.3,15.43003026]
[1726551096476,0.005,2299.4,2299.3,15.43003026]
[1726551096975,0.005,2299.4,2299.3,19.77917026]
[1726551097139,0.005,2299.4,2299.3,15.43003026]
[1726551097668,0.005,2299.4,2299.3,14.52237994]
[1726551097864,0.005,2299.4,2299.3,15.43003026]
[1726551098649,0.005,2299.4,2299.3,14.52237994]
[1726551098849,0.005,2299.4,2299.3,18.87151994]
[1726551099050,0.005,2299.4,2299.3,19.77917026]
[1726551099250,0.005,2299.4,2299.3,18.87151994]
[1726551101577,0.005,2299.4,2299.3,21.87401994]
[1726551101782,0.005,2299.4,2299.3,25.36611402]
[1726551102169,0.005,2299.4,2299.3,22.6885873]
[1726551102481,0.005,2299.4,2299.3,26.78110528]
[1726551103485,0.005,2299.4,2299.3,31.13024528]
[1726551103642,0.005,2299.4,2299.3,34.7196919]
[1726551103974,0.04312322,2299.4,2299.3,32.90005034]
[1726551104152,0.005,2299.4,2299.3,34.71377475]
[1726551104548,0.04312322,2299.4,2299.3,34.71377475]
[1726551104751,0.005,2299.4,2299.3,34.71377475]
[1726551105377,0.04312322,2299.4,2299.3,32.90005034]
[1726551105676,0.005,2299.4,2299.3,34.71377475]
[1726551105878,0.04312322,2299.4,2299.3,34.71377475]
[1726551106046,0.005,2299.4,2299.3,32.90005034]
[1726551106241,0.04312322,2299.4,2299.3,34.25974149]
[1726551106879,0.04312322,2299.4,2299.3,34.25535717]
[1726551107117,0.04312322,2299.4,2299.3,35.14579043]
[1726551107484,0.005,2299.4,2299.3,39.9473817]
[1726551107686,0.005,2299.4,2299.3,33.33206602]
[1726551107880,0.005,2299.4,2299.3,35.5982417]
[1726551108182,0.005,2299.4,2299.3,35.14452863]
[1726551108405,0.45531431,2300.6,2300.3,0.55]
[1726551108691,2.3072,2300.9,2300.3,17.11919957]
[1726551109046,2.3072,2300.9,2300.3,24.31133172]
[1726551109347,2.2686,2301.2,2300.3,24.7639728]
[1726551109547,2.2686,2301.2,2300.3,30.48243577]
[1726551109885,2.2686,2301.2,2300.3,34.48243577]
[1726551110389,2.2686,2301.2,2300.3,31.35815909]
[1726551111167,2.2686,2301.2,2300.3,30.45463917]
[1726551111374,2.2686,2301.2,2300.3,30.35554444]
[1726551111582,2.2686,2301.2,2300.3,26.00829444]
[1726551111875,2.2686,2301.2,2300.3,30.35554444]
[1726551112198,2.2686,2301.2,2300.3,22.00829444]
[1726551112403,2.2686,2301.2,2300.3,26.35554444]
[1726551113383,2.2686,2301.2,2300.3,24.35622644]
[1726551113995,6.61418,2301.2,2300.3,20.00897644]
[1726551114177,2.2686,2301.2,2300.3,26.35508177]
[1726551114376,2.2686,2301.2,2300.3,23.02334777]
[1726551115216,2.2686,2301.2,2300.3,27.02334777]
[1726551115570,2.2686,2301.2,2300.6,8.69338]
[1726551115785,2.2686,2301.2,2300.6,14.00612617]
[1726551119508,4.34572,2301.2,2300.6,7.34669]
[1726551119710,2.447,2300.8,2300.6,7.34669]
[1726551122156,0.03720221,2300.7,2300.6,7.34669]
[1726551122316,0.03720221,2300.7,2300.6,3.0]
[1726551122504,0.03720221,2300.7,2300.6,7.34669]
[1726551123287,0.03720221,2300.7,2300.6,3.0]
[1726551123501,0.03720221,2300.7,2300.4,3.0]
[1726551123833,2.4121,2300.6,2300.3,4.0]
[1726551124183,2.4121,2300.6,2300.3,5.44340817]
[1726551124833,2.4121,2300.6,2300.3,1.44340817]
[1726551125203,2.4121,2300.5,2300.2,3.0]
[1726551125734,6.75898,2300.5,2300.2,3.0]
[1726551125962,2.4121,2300.3,2299.9,10.13921817]
[1726551126101,2.4121,2300.3,2300.0,4.0]
[1726551126704,2.4121,2300.6,2300.1,1.44340817]
[1726551126905,2.4121,2300.6,2300.2,4.34744]
[1726551127203,2.4121,2300.6,2300.3,1.44340817]
[1726551129028,6.75887,2300.6,2300.1,4.73035571]
[1726551129206,2.4121,2300.6,2300.2,1.44340817]
[1726551130135,2.4121,2300.6,2300.3,4.34725]
[1726551130300,2.4121,2300.6,2300.4,5.79046817]
[1726551130634,2.4121,2300.6,2300.4,1.44340817]
[1726551130817,2.4121,2300.6,2300.4,5.79042817]
[1726551131196,2.4121,2300.6,2300.4,1.44340817]
[1726551132908,2.4121,2300.6,2300.4,5.79031817]
[1726551133106,2.4121,2300.6,2300.4,6.91796978]
[1726551134018,2.4121,2300.6,2300.5,4.34688]
[1726551134217,2.4121,2300.6,2300.4,11.26493978]
[1726551134895,2.4121,2300.6,2300.4,6.91796978]
[1726551135712,2.4121,2300.6,2300.4,11.26492978]
[1726551135911,2.4121,2300.6,2300.4,11.26493978]
[1726551136637,2.4121,2300.6,2300.4,6.91796978]
[1726551136797,2.4121,2300.6,2300.2,7.34731]
[1726551136999,6.75889,2300.6,2300.2,3.0]
[1726551137635,6.75889,2300.6,2300.2,7.34742]
[1726551138739,2.356,2300.4,2300.2,3.0]
[1726551141734,2.356,2300.4,2300.3,1.44340817]
[1726551141911,2.356,2300.6,2300.3,5.79050817]
[1726551142112,2.356,2300.6,2300.5,1.44340817]
[1726551143045,0.03720221,2300.7,2300.5,1.44340817]
[1726551143940,0.03720221,2300.7,2300.3,8.20800817]
[1726551144243,0.03720221,2300.7,2300.3,5.79050817]
[1726551144613,0.03720221,2300.7,2300.5,1.44340817]
[1726551144817,0.03720221,2300.7,2300.5,5.79012817]
[1726551145029,0.03720221,2300.7,2300.6,4.34669]
[1726551146610,0.03720221,2300.7,2300.5,5.79012817]
[1726551146814,2.50800221,2300.7,2300.5,5.79012817]
[1726551151065,2.50800221,2300.7,2300.5,3.0]
[1726551151436,2.50800221,2300.7,2300.5,4.34688]
[1726551153536,2.50800221,2300.7,2300.5,4.34673]
[1726551153865,2.50800221,2300.7,2300.5,5.40400089]
[1726551154061,0.03720221,2300.7,2300.5,9.75077089]
[1726551154272,0.03720221,2300.7,2300.6,1.33958002]
[1726551154477,0.03720221,2300.7,2300.6,1.44340817]
[1726551154768,0.03720221,2300.7,2300.5,5.40400089]
[1726551154769,0.03720221,2300.7,2300.5,4.34673]
[1726551155454,0.03720221,2300.7,2300.5,8.69353]
[1726551155770,0.03720221,2300.7,2300.6,1.33963025]
[1726551155945,0.03720221,2300.7,2300.6,5.68632025]
[1726551156154,0.03720221,2300.7,2300.6,7.12972842]
[1726551156352,0.03720221,2300.7,2300.6,14.88814325]
[1726551156552,2.4361,2301.0,2300.8,4.3463]
[1726551156755,2.4361,2301.0,2300.9,1.44340817]
[1726551157078,2.4361,2301.0,2300.7,8.78988817]
[1726551157301,2.4361,2301.0,2300.8,5.68565177]
[1726551157472,2.4361,2301.0,2300.8,4.34625]
[1726551158389,2.4361,2301.0,2300.8,4.3462]
[1726551158745,2.4081,2301.2,2300.8,4.3462]
[1726551158948,2.4081,2301.2,2300.9,5.78942817]
[1726551159583,2.4081,2301.2,2300.8,4.34621]
[1726551159781,2.4081,2301.2,2300.8,4.34624]
[1726551160261,6.75366,2301.2,2300.9,1.33917542]
[1726551160458,6.75366,2301.2,2300.8,4.34624]
[1726551161063,4.34576,2301.1,2300.9,1.33904466]
[1726551161261,4.34558,2301.2,2300.7,8.78972817]
[1726551161585,2.2777,2301.1,2300.8,1.33926774]
[1726551161783,2.2777,2301.1,2300.7,13.13614817]
[1726551161996,2.2777,2301.1,2300.8,1.33922473]
[1726551162148,2.2777,2301.1,2300.7,7.34632]
[1726551162486,2.2777,2301.1,2300.8,1.33928859]
[1726551162651,2.2777,2301.1,2300.7,13.13613817]
[1726551162850,4.34595,2301.0,2300.8,3.34815088]
[1726551163049,2.4682,2300.9,2300.6,0.90351992]
[1726551163256,2.4682,2300.9,2300.5,3.90351992]
[1726551163449,2.4682,2300.9,2300.6,3.34892254]
[1726551163654,2.4682,2300.9,2300.4,0.90351992]
[1726551163980,4.34631,2300.8,2300.5,8.79259777]
[1726551164180,6.81434,2300.9,2300.5,5.44340817]
[1726551164554,6.81434,2300.9,2300.5,1.44340817]
[1726551166056,2.4682,2300.9,2300.5,5.79018817]
[1726551166366,2.4682,2300.9,2300.6,1.33950296]
[1726551166562,2.4682,2300.9,2300.5,6.44113348]
[1726551166767,2.4682,2300.9,2300.6,1.33951348]
[1726551166996,2.4682,2300.9,2300.7,1.44340817]
[1726551167421,2.4682,2300.9,2300.7,5.78988817]
[1726551167572,2.4581,2301.1,2300.8,3.34757765]
[1726551167781,2.4581,2301.1,2300.8,4.34628]
[1726551168785,2.4581,2301.1,2300.9,1.44340817]
[1726551169652,2.4581,2301.1,2300.8,5.7457465]
[1726551169856,2.4581,2301.1,2300.8,4.34628]
[1726551172394,2.4581,2301.1,2300.9,4.3461]
[1726551173259,2.2903,2301.3,2301.0,4.34593]
[1726551175259,2.2903,2301.3,2300.9,5.78950817]
[1726551176279,2.2903,2301.3,2300.9,4.3461]
[1726551176456,2.2903,2301.3,2301.0,4.34583]
[1726551177174,2.2903,2301.3,2300.9,9.74326916]
[1726551177366,2.2903,2301.3,2300.9,5.39713916]
[1726551179076,2.2903,2301.3,2301.0,4.34575]
[1726551179491,2.2903,2301.3,2301.0,8.6916]
[1726551179663,2.2903,2301.3,2301.0,8.69158]
[1726551180008,2.2903,2301.3,2301.0,4.34575]
[1726551180210,2.2903,2301.3,2301.0,9.66585292]
[1726551180417,2.2903,2301.3,2301.0,4.34575]
[1726551181274,2.2903,2301.3,2301.0,8.6916]
[1726551183225,2.2903,2301.3,2301.0,8.69159]
[1726551183425,2.2903,2301.3,2301.0,4.34575]
[1726551183756,2.2903,2301.3,2301.0,5.35928082]
[1726551185369,6.6357,2301.3,2300.9,4.34609]
[1726551185544,2.2903,2301.3,2301.0,4.34593]
[1726551185941,2.2903,2301.3,2301.0,5.78933817]
[1726551186434,2.2903,2301.3,2301.1,4.34566]
[1726551188659,2.2903,2301.3,2301.1,4.34574]
[1726551190773,2.2903,2301.3,2301.2,4.34555]
[1726551190956,0.0382537,2301.4,2301.2,4.34555]
[1726551191597,0.0382537,2301.4,2301.3,6.62187]
[1726551191748,0.0382537,2301.4,2301.3,13.64229857]
[1726551192086,0.0382537,2301.4,2301.3,15.64993837]
[1726551193455,0.0382537,2301.4,2301.3,15.64894605]
[1726551194747,0.0382537,2301.4,2301.3,17.01556197]
[1726551195785,0.0382537,2301.4,2301.3,16.46556197]
[1726551196000,0.0382537,2301.4,2301.3,17.90897014]
[1726551196153,0.0382537,2301.4,2301.3,17.00545022]
[1726551196354,0.0382537,2301.4,2301.3,21.00545022]